fUSD/lending_fUSD_20250101
["ID","MTS","AMOUNT","RATE_DAILY","PERIOD"]
[347375851,1735745440698,-849.36,0.00010958,2]
[347375852,1735745440708,-500.0,0.00010958,7]
[347375853,1735745440717,-500.0,0.00010958,2]
[347375854,1735745440727,-500.0,0.00010958,2]
[347375855,1735745440740,-859.81,0.00010958,2]
[347375856,1735745440749,-500.0,0.00010958,2]
[347375857,1735745440758,-500.0,0.00010958,2]
[347375858,1735745440768,-501.08,0.00010958,2]
[347375859,1735745440777,-599.77,0.00010958,2]
[347375860,1735745440786,-572.07,0.00010958,2]
[347375861,1735745440795,-1108.74,0.00010958,2]
[347375862,1735745440804,-701.49,0.00010958,2]
[347375863,1735745440815,-975.132998,0.00010958,2]
[347375864,1735745440824,-500.0,0.00010958,2]
[347375865,1735745440834,-500.0,0.00010958,2]
[347375866,1735745440844,-1438.01,0.00010958,2]
[347375867,1735745440854,-1003.55,0.00010958,2]
[347375868,1735745440863,-1434.55,0.00010958,2]
[347375869,1735745440873,-597.31,0.00010958,2]
[347375870,1735745440882,-500.0,0.00010958,2]
[347375871,1735745440891,-1157.23,0.00010958,2]
[347375872,1735745440900,-500.0,0.00010958,2]
[347375873,1735745440910,-993.17,0.00010958,2]
[347375874,1735745440919,-500.0,0.00010958,2]
[347375875,1735745440928,-500.0,0.00010958,2]
[347375876,1735745440937,-735.77,0.00010958,2]
[347375877,1735745440946,-902.0,0.00010958,2]
[347375878,1735745440955,-500.0,0.00010958,2]
[347375879,1735745440965,-500.0,0.00010958,2]
[347375880,1735745440975,-1283.08,0.00010958,2]
[347375881,1735745440984,-1191.87,0.00010958,2]
[347375882,1735745440993,-754.125412,0.00010958,2]
[347375883,1735745441003,-1208.34,0.00010958,2]
[347375884,1735745441012,-500.0,0.00010958,2]
[347375885,1735745441022,-500.0,0.00010958,2]
[347375886,1735745441031,-1518.58,0.00010958,2]
[347375887,1735745441040,-500.0,0.00010958,2]
[347375888,1735745441050,-1485.99,0.00010958,2]
[347375889,1735745441059,-2145.78,0.00010958,2]
[347375890,1735745441068,-500.0,0.00010958,2]
[347375891,1735745441077,-1813.93,0.00010958,2]
[347375892,1735745441086,-500.0,0.00010958,2]
[347375893,1735745441095,-951.58,0.00010958,2]
[347375894,1735745441105,-1697.24,0.00010958,2]
[347375895,1735745441116,-500.0,0.00010958,2]
[347375896,1735745441125,-500.0,0.00010958,2]
[347375897,1735745441134,-500.0,0.00010958,2]
[347375898,1735745441143,-1040.49,0.00010958,2]
[347375899,1735745441153,-1111.43,0.00010958,2]
[347375900,1735745441162,-698.82,0.00010958,2]
[347375901,1735745441171,-698.74,0.00010958,2]
[347375902,1735745441180,-500.0,0.00010958,2]
[347375903,1735745441189,-903.16,0.00010958,2]
[347375904,1735745441198,-592.76,0.00010958,2]
[347375905,1735745441207,-976.25,0.00010958,2]
[347375906,1735745441216,-615.86,0.00010958,2]
[347375907,1735745441226,-500.0,0.00010958,2]
[347375908,1735745441234,-903.09,0.00010958,2]
[347375909,1735745441243,-1253.03,0.00010958,2]
[347375910,1735745441252,-500.0,0.00010958,2]
[347375911,1735745441261,-500.0,0.00010958,2]
[347375912,1735745441270,-657.43,0.00010958,2]
[347375913,1735745441279,-500.0,0.00010958,2]
[347375914,1735745441287,-500.0,0.00010958,2]
[347375915,1735745441296,-986.32,0.00010958,2]
[347375916,1735745441305,-1877.48,0.00010958,2]
[347375917,1735745441314,-500.0,0.00010958,2]
[347375918,1735745441323,-540.58,0.00010958,2]
[347375919,1735745441333,-1091.85,0.00010958,2]
[347375920,1735745441342,-500.0,0.00010958,2]
[347375921,1735745441351,-1477.25,0.00010958,2]
[347375922,1735745441361,-2659.53,0.00010958,2]
[347375923,1735745441371,-1027.04,0.00010958,2]
[347375924,1735745441380,-500.0,0.00010958,2]
[347375925,1735745441389,-678.63,0.00010958,2]
[347375926,1735745441398,-1276.04,0.00010958,2]
[347375927,1735745441408,-621.33,0.00010958,2]
[347375928,1735745441417,-1573.38,0.00010958,2]
[347375929,1735745441426,-500.0,0.00010958,2]
[347375930,1735745441435,-500.0,0.00010958,2]
[347375931,1735745441445,-3381.84,0.00010958,2]
[347375932,1735745441454,-834.56,0.00010958,2]
[347375933,1735745441463,-500.0,0.00010958,2]
[347375934,1735745441472,-500.0,0.00010958,2]
[347375935,1735745441481,-500.0,0.00010958,2]
[347375936,1735745441491,-500.0,0.00010958,2]
[347375937,1735745441500,-691.19,0.00010958,2]
[347375938,1735745441510,-1396.28,0.00010958,2]
[347375939,1735745441519,-500.0,0.00010958,2]
[347375940,1735745441528,-701.39,0.00010958,2]
[347375941,1735745441537,-500.0,0.00010958,2]
[347375942,1735745441546,-500.0,0.00010958,2]
[347375943,1735745441556,-1348.91,0.00010958,2]
[347375944,1735745441565,-820.41,0.00010958,2]
[347375945,1735745441575,-500.0,0.00010958,2]
[347375946,1735745441584,-519.55,0.00010958,2]
[347375947,1735745441594,-1751.52,0.00010958,2]
[347375948,1735745441603,-1302.86,0.00010958,2]
[347375949,1735745441613,-500.0,0.00010958,2]
[347375950,1735745441623,-500.0,0.00010958,2]
[347375951,1735745441632,-621.91,0.00010958,2]
[347375952,1735745441641,-500.0,0.00010958,2]
[347375953,1735745441650,-865.69,0.00010958,2]
[347375954,1735745441659,-500.0,0.00010958,2]
[347375955,1735745441669,-500.0,0.00010958,2]
[347375956,1735745441678,-5526.17,0.00010958,2]
[347375957,1735745441688,-946.54,0.00010958,2]
[347375958,1735745441698,-846.89,0.00010958,2]
[347375959,1735745441707,-1466.53,0.00010958,2]
[347375960,1735745441716,-500.0,0.00010958,2]
[347375961,1735745441725,-500.0,0.00010958,2]
[347375962,1735745441737,-500.0,0.00010958,2]
[347375963,1735745441746,-534.17,0.00010958,2]
[347375964,1735745441755,-500.0,0.00010958,2]
[347375965,1735745441764,-500.0,0.00010958,2]
[347375966,1735745441774,-1363.43,0.00010958,2]
[347375967,1735745441783,-1116.8,0.00010958,2]
[347375968,1735745441792,-500.0,0.00010958,2]
[347375969,1735745441801,-782.55,0.00010958,2]
[347375970,1735745441811,-1875.5,0.00010958,2]
[347375971,1735745441820,-912.01,0.00010958,2]
[347375972,1735745441830,-1460.16,0.00010958,2]
[347375973,1735745441839,-500.0,0.00010958,2]
[347375974,1735745441848,-1774.85,0.00010958,2]
[347375975,1735745441859,-711.13,0.00010958,2]
[347375976,1735745441868,-1816.64,0.00010958,2]
[347375977,1735745441878,-500.0,0.00010958,2]
[347375978,1735745441888,-500.0,0.00010958,2]
[347375979,1735745441898,-1427.81,0.00010958,2]
[347375980,1735745441907,-500.0,0.00010958,2]
[347375981,1735745441917,-500.0,0.00010958,2]
[347375982,1735745441927,-997.38,0.00010958,2]
[347375983,1735745441936,-500.0,0.00010958,2]
[347375984,1735745441945,-505.77,0.00010958,2]
[347375985,1735745441954,-528.0,0.00010958,2]
[347375986,1735745441964,-500.0,0.00010958,2]
[347375987,1735745441974,-500.0,0.00010958,2]
[347375988,1735745441983,-797.36,0.00010958,2]
[347375989,1735745441993,-500.0,0.00010958,2]
[347375990,1735745442002,-500.0,0.00010958,2]
[347375991,1735745442011,-500.0,0.00010958,2]
[347375992,1735745442020,-500.0,0.00010958,2]
[347375993,1735745442030,-982.64,0.00010958,2]
[347375994,1735745442039,-1870.74,0.00010958,2]
[347375995,1735745442048,-500.0,0.00010958,2]
[347375996,1735745442058,-500.0,0.00010958,2]
[347375997,1735745442067,-500.0,0.00010958,2]
[347375998,1735745442077,-557.96,0.00010958,2]
[347375999,1735745442086,-500.0,0.00010958,2]
[347376000,1735745442096,-500.0,0.00010958,2]
[347376001,1735745442106,-500.0,0.00010958,2]
[347376002,1735745442115,-500.0,0.00010958,2]
[347376003,1735745442125,-1090.21,0.00010958,2]
[347376004,1735745442134,-851.61,0.00010958,2]
[347376005,1735745442144,-1942.38,0.00010958,2]
[347376006,1735745442154,-1035.34,0.00010958,2]
[347376007,1735745442163,-1112.23,0.00010958,2]
[347376008,1735745442172,-1440.86,0.00010958,2]
[347376009,1735745442181,-500.0,0.00010958,2]
[347376010,1735745442190,-1727.41,0.00010958,2]
[347376011,1735745442199,-425.27648481,0.00010958,2]
[347376012,1735745442209,-712.32,0.00010958,2]
[347376013,1735745442219,-500.0,0.00010958,2]
[347376014,1735745442229,-11972.35,0.00010958,2]
[347376015,1735745442239,-500.0,0.00010958,2]
[347376016,1735745442248,-1330.05,0.00010958,2]
[347376017,1735745442259,-500.0,0.00010958,2]
[347376018,1735745442268,-500.0,0.00010958,2]
[347376019,1735745442277,-615.89,0.00010958,2]
[347376020,1735745442287,-931.91,0.00010958,2]
[347376021,1735745442296,-522.7,0.00010958,2]
[347376022,1735745442306,-500.0,0.00010958,2]
[347376023,1735745442315,-651.72,0.00010958,2]
[347376024,1735745442325,-500.0,0.00010958,2]
[347376025,1735745442334,-653.5,0.00010958,2]
[347376026,1735745442344,-500.0,0.00010958,2]
[347376027,1735745442354,-1404.38,0.00010958,2]
[347376028,1735745442364,-500.0,0.00010958,2]
[347376029,1735745442374,-12527.33,0.00010958,2]
[347376030,1735745442383,-624.79,0.00010958,2]
[347376031,1735745442393,-500.0,0.00010958,2]
[347376032,1735745442403,-1035.72,0.00010958,2]
[347376033,1735745442413,-500.0,0.00010958,2]
[347376034,1735745442423,-1623.31,0.00010958,2]
[347376035,1735745442432,-500.0,0.00010958,2]
[347376036,1735745442442,-411.65730734,0.00010958,2]
[347376037,1735745442451,-500.0,0.00010958,2]
[347376038,1735745442460,-500.0,0.00010958,2]
[347376039,1735745442469,-500.0,0.00010958,2]
[347376040,1735745442479,-1507.69,0.00010958,2]
[347376041,1735745442488,-964.63,0.00010958,2]
[347376042,1735745442498,-1568.42,0.00010958,2]
[347376043,1735745442507,-913.09,0.00010958,2]
[347376044,1735745442517,-500.0,0.00010958,2]
[347376045,1735745442527,-1421.03,0.00010958,2]
[347376046,1735745442536,-603.58,0.00010958,2]
[347376047,1735745442546,-637.81,0.00010958,2]
[347376048,1735745442555,-500.0,0.00010958,2]
[347376049,1735745442566,-1138.55,0.00010958,2]
[347376050,1735745442575,-500.0,0.00010958,2]
[347376051,1735745442584,-500.0,0.00010958,2]
[347376052,1735745442594,-1890.89,0.00010958,2]
[347376053,1735745442603,-500.0,0.00010958,2]
[347376054,1735745442614,-1076.03,0.00010958,2]
[347376055,1735745442623,-500.0,0.00010958,2]
[347376056,1735745442633,-500.0,0.00010958,2]
[347376057,1735745442642,-500.0,0.00010958,2]
[347376058,1735745442652,-500.0,0.00010958,2]
[347376059,1735745442662,-500.0,0.00010958,2]
[347376060,1735745442672,-500.0,0.00010958,2]
[347376061,1735745442682,-1649.85,0.00010958,2]
[347376062,1735745442694,-1194.35,0.00010958,2]
[347376063,1735745442704,-974.07,0.00010958,2]
[347376064,1735745442713,-893.07,0.00010958,2]
[347376065,1735745442723,-500.0,0.00010958,2]
[347376066,1735745442735,-500.0,0.00010958,2]
[347376067,1735745442745,-500.0,0.00010958,2]
[347376068,1735745442755,-2330.68,0.00010958,2]
[347376069,1735745442764,-1346.06,0.00010958,2]
[347376070,1735745442774,-1119.44,0.00010958,2]
[347376071,1735745442784,-1053.23,0.00010958,2]
[347376072,1735745442794,-500.0,0.00010958,2]
[347376073,1735745442803,-523.36,0.00010958,2]
[347376074,1735745442814,-780.66,0.00010958,2]
[347376075,1735745442824,-1839.67,0.00010958,2]
[347376076,1735745442833,-500.0,0.00010958,2]
[347376077,1735745442843,-500.0,0.00010958,2]
[347376078,1735745442853,-1774.01,0.00010958,2]
[347376079,1735745442864,-970.6,0.00010958,2]
[347376080,1735745442873,-500.0,0.00010958,2]
[347376081,1735745442883,-2266.55,0.00010958,2]
[347376082,1735745442892,-564.47,0.00010958,2]
[347376083,1735745442902,-500.0,0.00010958,2]
[347376084,1735745442911,-1401.6,0.00010958,2]
[347376086,1735745442920,-500.0,0.00010958,2]
[347376088,1735745442929,-500.0,0.00010958,2]
[347376089,1735745442939,-500.0,0.00010958,2]
[347376090,1735745442948,-785.54,0.00010958,2]
[347376091,1735745442957,-797.48,0.00010958,2]
[347376094,1735745442967,-500.0,0.00010958,2]
[347376095,1735745442976,-689.59,0.00010958,2]
[347376096,1735745442985,-500.0,0.00010958,2]
[347376097,1735745442995,-500.0,0.00010958,2]
[347376098,1735745443004,-500.0,0.00010958,2]
[347376099,1735745443014,-500.0,0.00010958,2]
[347376100,1735745443023,-1323.33,0.00010958,2]
[347376101,1735745443032,-500.0,0.00010958,2]
[347376102,1735745443042,-500.0,0.00010958,2]
[347376103,1735745443051,-1581.91,0.00010958,2]
[347376104,1735745443060,-500.0,0.00010958,2]
[347376105,1735745443070,-1901.4,0.00010958,2]
[347376106,1735745443079,-500.0,0.00010958,2]
[347376107,1735745443089,-1320.56,0.00010958,2]
[347376108,1735745443098,-1301.33,0.00010958,2]
[347376109,1735745443107,-302.44632373,0.00010958,2]
[347376110,1735745443118,-2256.74,0.00010958,2]
[347376111,1735745443127,-659.68,0.00010958,2]
[347376112,1735745443137,-649.69,0.00010958,2]
[347376113,1735745443146,-500.0,0.00010958,2]
[347376114,1735745443155,-613.8,0.00010958,2]
[347376115,1735745443165,-500.0,0.00010958,2]
[347376116,1735745443174,-803.4,0.00010958,2]
[347376117,1735745443183,-1151.13,0.00010958,2]
[347376118,1735745443194,-851.26,0.00010958,2]
[347376119,1735745443203,-508.0,0.00010958,2]
[347376120,1735745443212,-1441.47,0.00010958,2]
[347376121,1735745443221,-500.0,0.00010958,2]
[347376122,1735745443230,-1186.89,0.00010958,2]
[347376123,1735745443240,-1351.16,0.00010958,2]
[347376124,1735745443249,-1052.15,0.00010958,2]
[347376125,1735745443259,-1716.31,0.00010958,2]
[347376126,1735745443268,-500.0,0.00010958,2]
[347376127,1735745443277,-922.59,0.00010958,2]
[347376128,1735745443287,-500.0,0.00010958,2]
[347376129,1735745443295,-500.0,0.00010958,2]
[347376130,1735745443305,-3849.37,0.00010958,2]
[347376131,1735745443314,-500.0,0.00010958,2]
[347376132,1735745443323,-500.0,0.00010958,2]
[347376133,1735745443332,-779.77,0.00010958,2]
[347376134,1735745443341,-534.82,0.00010958,2]
[347376135,1735745443351,-2429.59,0.00010958,2]
[347376136,1735745443361,-1171.4,0.00010958,2]
[347376137,1735745443370,-500.0,0.00010958,2]
[347376138,1735745443380,-500.0,0.00010958,2]
[347376139,1735745443390,-7069.58,0.00010958,2]
[347376141,1735745443401,-500.0,0.00010958,2]
[347376142,1735745443411,-1375.15,0.00010958,2]
[347376143,1735745443420,-1086.38,0.00010958,2]
[347376144,1735745443430,-431.62816439,0.00010958,2]
[347376145,1735745443439,-500.0,0.00010958,2]
[347376146,1735745443448,-6282.37,0.00010958,2]
[347376147,1735745443458,-708.72,0.00010958,2]
[347376148,1735745443467,-613.75,0.00010958,2]
[347376149,1735745443477,-2570.86,0.00010958,2]
[347376150,1735745443487,-553.35,0.00010958,2]
[347376151,1735745443496,-528.54,0.00010958,2]
[347376152,1735745443506,-500.0,0.00010958,2]
[347376153,1735745443515,-1809.46,0.00010958,2]
[347376154,1735745443525,-834.61,0.00010958,2]
[347376155,1735745443535,-500.0,0.00010958,2]
[347376156,1735745443544,-1837.01,0.00010958,2]
[347376157,1735745443554,-1308.58,0.00010958,2]
[347376158,1735745443563,-500.0,0.00010958,2]
[347376159,1735745443573,-614.8,0.00010958,2]
[347376160,1735745443582,-1651.34,0.00010958,2]
[347376161,1735745443591,-1274.77,0.00010958,2]
[347376162,1735745443601,-1026.94,0.00010958,2]
[347376163,1735745443611,-1170.14,0.00010958,2]
[347376164,1735745443621,-1123.27,0.00010958,2]
[347376165,1735745443630,-1125.13,0.00010958,2]
[347376167,1735745443640,-500.0,0.00010958,2]
[347376168,1735745443649,-3288.85,0.00010958,2]
[347376169,1735745443659,-2959.62,0.00010958,2]
[347376170,1735745443668,-3200.61,0.00010958,2]
[347376171,1735745443678,-500.0,0.00010958,2]
[347376172,1735745443689,-2311.39,0.00010958,2]
[347376173,1735745443699,-760.97,0.00010958,2]
[347376175,1735745443708,-1535.75,0.00010958,2]
[347376176,1735745443717,-649.57,0.00010958,2]
[347376177,1735745443727,-500.0,0.00010958,2]
[347376178,1735745443740,-1067.54,0.00010958,2]
[347376179,1735745443750,-5153.63,0.00010958,2]
[347376180,1735745443759,-2267.9,0.00010958,2]
[347376181,1735745443769,-3090.84,0.00010958,2]
[347376182,1735745443778,-1369.63,0.00010958,2]
[347376183,1735745443788,-1132.17,0.00010958,2]
[347376184,1735745443797,-500.0,0.00010958,2]
[347376185,1735745443807,-500.0,0.00010958,2]
[347376186,1735745443818,-692.25,0.00010958,2]
[347376187,1735745443827,-500.0,0.00010958,2]
[347376188,1735745443838,-500.0,0.00010958,2]
[347376189,1735745443847,-500.0,0.00010958,2]
[347376190,1735745443857,-1730.56,0.00010958,2]
[347376191,1735745443867,-500.0,0.00010958,2]
[347376192,1735745443876,-525.62,0.00010958,2]
[347376193,1735745443886,-3658.84,0.00010958,2]
[347376194,1735745443895,-1849.13,0.00010958,2]
[347376195,1735745443904,-1367.68,0.00010958,2]
[347376196,1735745443913,-500.0,0.00010958,2]
[347376197,1735745443923,-1573.51,0.00010958,2]
[347376198,1735745443932,-500.0,0.00010958,2]
[347376199,1735745443942,-500.0,0.00010958,2]
[347376200,1735745443952,-721.48,0.00010958,2]
[347376201,1735745443961,-1381.17,0.00010958,2]
[347376202,1735745443971,-500.0,0.00010958,2]
[347376203,1735745443980,-500.0,0.00010958,2]
[347376204,1735745443989,-3131.46,0.00010958,2]
[347376205,1735745443999,-629.5,0.00010958,2]
[347376206,1735745444008,-500.0,0.00010958,2]
[347376207,1735745444019,-500.0,0.00010958,2]
[347376208,1735745444028,-500.0,0.00010958,2]
[347376209,1735745444038,-1590.68,0.00010958,2]
[347376210,1735745444050,-500.0,0.00010958,2]
[347376211,1735745444059,-650.18,0.00010958,2]
[347376212,1735745444069,-1395.66,0.00010958,2]
[347376213,1735745444078,-1167.5,0.00010958,2]
[347376214,1735745444088,-500.0,0.00010958,2]
[347376215,1735745444097,-433.29028986,0.00010958,2]
[347376216,1735745444107,-547.43,0.00010958,2]
[347376217,1735745444116,-780.03,0.00010958,2]
[347376218,1735745444126,-2848.99,0.00010958,2]
[347376219,1735745444136,-3630.07,0.00010958,2]
[347376220,1735745444145,-1104.53,0.00010958,2]
[347376221,1735745444155,-500.0,0.00010958,2]
[347376222,1735745444164,-1222.92,0.00010958,2]
[347376223,1735745444174,-500.0,0.00010958,2]
[347376224,1735745444183,-1093.29,0.00010958,2]
[347376225,1735745444193,-515.23,0.00010958,2]
[347376226,1735745444203,-989.08,0.00010958,2]
[347376227,1735745444213,-1583.19,0.00010958,2]
[347376228,1735745444222,-500.0,0.00010958,2]
[347376229,1735745444231,-642.56,0.00010958,2]
[347376230,1735745444241,-1958.61,0.00010958,2]
[347376231,1735745444250,-636.39,0.00010958,2]
[347376232,1735745444260,-1668.13,0.00010958,2]
[347376233,1735745444269,-989.25,0.00010958,2]
[347376234,1735745444279,-1263.61,0.00010958,2]
[347376235,1735745444288,-1034.09,0.00010958,2]
[347376236,1735745444298,-2824.12,0.00010958,2]
[347376237,1735745444307,-2906.55,0.00010958,2]
[347376238,1735745444318,-500.0,0.00010958,2]
[347376239,1735745444328,-500.0,0.00010958,2]
[347376240,1735745444338,-936.24,0.00010958,2]
[347376241,1735745444347,-659.92,0.00010958,2]
[347376242,1735745444357,-500.0,0.00010958,2]
[347376243,1735745444367,-2016.54,0.00010958,2]
[347376244,1735745444377,-500.0,0.00010958,2]
[347376245,1735745444387,-2632.33,0.00010958,2]
[347376246,1735745444397,-161.987722,0.00010958,2]
[347376247,1735745444407,-500.0,0.00010958,2]
[347376248,1735745444416,-500.0,0.00010958,2]
[347376249,1735745444427,-629.44,0.00010958,2]
[347376250,1735745444436,-11916.44,0.00010958,2]
[347376251,1735745444447,-762.22,0.00010958,2]
[347376252,1735745444457,-1031.65,0.00010958,2]
[347376253,1735745444467,-4037.38,0.00010958,2]
[347376254,1735745444478,-3322.98,0.00010958,2]
[347376255,1735745444488,-1238.4,0.00010958,2]
[347376256,1735745444499,-500.0,0.00010958,2]
[347376257,1735745444508,-500.0,0.00010958,2]
[347376258,1735745444518,-500.0,0.00010958,2]
[347376259,1735745444527,-1870.41,0.00010958,2]
[347376260,1735745444537,-2154.12,0.00010958,2]
[347376261,1735745444547,-500.0,0.00010958,2]
[347376262,1735745444556,-500.0,0.00010958,2]
[347376263,1735745444566,-1646.16,0.00010958,2]
[347376264,1735745444576,-768.12,0.00010958,2]
[347376265,1735745444585,-1803.87,0.00010958,2]
[347376266,1735745444595,-1879.3,0.00010958,2]
[347376267,1735745444605,-1070.24,0.00010958,2]
[347376268,1735745444616,-1538.59,0.00010958,2]
[347376269,1735745444625,-1393.84,0.00010958,2]
[347376270,1735745444635,-590.93,0.00010958,2]
[347376271,1735745444864,-1109.43,0.00010958,2]
[347376272,1735745444875,-807.37,0.00010958,2]
[347376273,1735745444885,-500.0,0.00010958,2]
[347376274,1735745444895,-3239.7,0.00010958,2]
[347376275,1735745444905,-1312.84,0.00010958,2]
[347376276,1735745444915,-1194.42,0.00010958,2]
[347376277,1735745444924,-4269.4,0.00010958,2]
[347376278,1735745444934,-3220.48,0.00010958,2]
[347376279,1735745444944,-2812.14,0.00010958,2]
[347376280,1735745444953,-7500.0,0.00010958,2]
[347376281,1735745444963,-7500.0,0.00010958,2]
[347376282,1735745444973,-1055.65,0.00010958,2]
[347376283,1735745444984,-791.96,0.00010958,2]
[347376284,1735745444993,-889.76,0.00010958,2]
[347376285,1735745445003,-500.0,0.00010958,2]
[347376286,1735745445013,-1437.04,0.00010958,2]
[347376287,1735745445022,-2320.64,0.00010958,2]
[347376288,1735745445032,-500.0,0.00010958,2]
[347376289,1735745445042,-2026.76,0.00010958,2]
[347376290,1735745445051,-1246.38,0.00010958,2]
[347376291,1735745445062,-923.35,0.00010958,2]
[347376292,1735745445072,-500.0,0.00010958,2]
[347376293,1735745445082,-1624.1,0.00010958,2]
[347376294,1735745445091,-707.62,0.00010958,2]
[347376295,1735745445101,-9273.06,0.00010958,2]
[347376296,1735745445111,-1790.81,0.00010958,2]
[347376297,1735745445121,-500.0,0.00010958,2]
[347376298,1735745445131,-3666.35,0.00010958,2]
[347376299,1735745445140,-2141.1,0.00010958,2]
[347376300,1735745445149,-2521.45,0.00010958,2]
[347376301,1735745445158,-609.51,0.00010958,2]
[347376302,1735745445167,-1473.44,0.00010958,2]
[347376303,1735745445176,-1390.25,0.00010958,2]
[347376304,1735745445185,-500.0,0.00010958,2]
[347376305,1735745445194,-882.16,0.00010958,2]
[347376306,1735745445203,-1008.58,0.00010958,2]
[347376307,1735745445212,-500.0,0.00010958,2]
[347376308,1735745445221,-678.14,0.00010958,2]
[347376309,1735745445230,-1855.71,0.00010958,2]
[347376310,1735745445239,-725.38,0.00010958,2]
[347376311,1735745445248,-2292.9,0.00010958,2]
[347376312,1735745445258,-500.0,0.00010958,2]
[347376313,1735745445267,-1655.86,0.00010958,2]
[347376314,1735745445276,-4175.25,0.00010958,2]
[347376315,1735745445285,-1139.66,0.00010958,2]
[347376316,1735745445294,-4072.86,0.00010958,2]
[347376317,1735745445303,-569.08,0.00010958,2]
[347376318,1735745445313,-2511.63,0.00010958,2]
[347376319,1735745445322,-1955.7,0.00010958,2]
[347376320,1735745445331,-1564.36,0.00010958,2]
[347376321,1735745445341,-1560.34,0.00010958,2]
[347376322,1735745445351,-500.0,0.00010958,2]
[347376323,1735745445362,-972.79,0.00010958,2]
[347376324,1735745445371,-640.83,0.00010958,2]
[347376325,1735745445381,-752.91,0.00010958,2]
[347376326,1735745445391,-500.0,0.00010958,2]
[347376327,1735745445401,-500.0,0.00010958,2]
[347376328,1735745445411,-1716.38,0.00010958,2]
[347376329,1735745445421,-500.0,0.00010958,2]
[347376330,1735745445432,-8429.88,0.00010958,2]
[347376331,1735745445441,-500.0,0.00010958,2]
[347376332,1735745445451,-4370.84,0.00010958,2]
[347376333,1735745445461,-1866.42,0.00010958,2]
[347376334,1735745445470,-500.0,0.00010958,2]
[347376335,1735745445480,-500.0,0.00010958,2]
[347376336,1735745445490,-500.0,0.00010958,2]
[347376337,1735745445500,-1497.08,0.00010958,2]
[347376338,1735745445510,-500.0,0.00010958,2]
[347376339,1735745445520,-6724.81,0.00010958,2]
[347376340,1735745445530,-725.76,0.00010958,2]
[347376341,1735745445539,-500.0,0.00010958,2]
[347376342,1735745445550,-6150.98,0.00010958,2]
[347376343,1735745445560,-10799.55,0.00010958,2]
[347376344,1735745445570,-1893.57,0.00010958,2]
[347376345,1735745445580,-1048.76,0.00010958,2]
[347376346,1735745445590,-672.71,0.00010958,2]
[347376347,1735745445600,-689.41,0.00010958,2]
[347376348,1735745445609,-500.0,0.00010958,2]
[347376349,1735745445620,-661.75,0.00010958,2]
[347376350,1735745445630,-500.0,0.00010958,2]
[347376351,1735745445640,-1349.47,0.00010958,2]
[347376352,1735745445650,-916.2,0.00010958,2]
[347376353,1735745445660,-3754.81,0.00010958,2]
[347376354,1735745445670,-500.0,0.00010958,2]
[347376355,1735745445680,-5807.63,0.00010958,2]
[347376356,1735745445690,-3095.42,0.00010958,2]
[347376357,1735745445700,-1057.27,0.00010958,2]